bitfinex/quotes_SOLUSD_20260202
["timestamp","ask_amount","ask_price","bid_price","bid_amount"]
[1770044385474,13.34183973,104.16,104.11,3.75049009]
[1770044385772,4.48337959,104.16,104.11,12.60895023]
[1770044385975,13.34183973,104.16,104.11,12.60895023]
[1770044386356,13.35566308,104.16,104.11,12.62277358]
[1770044387056,4.48337959,104.16,104.11,12.62277358]
[1770044387571,4.48337959,104.11,104.08,4.27527085]
[1770044387881,4.1334345,104.14,104.1,8.87228349]
[1770044388168,4.1334345,104.12,104.08,8.87228349]
[1770044388676,8.87228349,104.13,104.08,12.62277358]
[1770044390258,13.03197357,104.13,104.08,12.62277358]
[1770044390465,4.15969008,104.13,104.09,8.87228349]
[1770044391775,13.03197357,104.13,104.09,8.87228349]
[1770044391974,13.03197357,104.13,104.08,12.62277358]
[1770044392272,4.15969008,104.13,104.09,8.87228349]
[1770044392471,0.2,104.19,104.09,12.62277358]
[1770044392472,13.03197357,104.14,104.09,12.62277358]
[1770044392672,13.03197357,104.13,104.08,12.62277358]
[1770044393272,13.03197357,104.13,104.09,8.87228349]
[1770044393972,4.15969008,104.13,104.09,8.87228349]
[1770044395176,13.03197357,104.13,104.09,8.87228349]
[1770044395563,0.2,104.19,104.09,0.14216157]
[1770044395564,4.15969008,104.18,104.09,0.14216157]
[1770044395763,4.15969008,104.15,104.08,3.75049009]
[1770044395973,4.15969008,104.15,104.07,0.28432314]
[1770044395974,4.15969008,104.14,104.1,8.87228349]
[1770044396364,4.15969008,104.14,104.11,8.87228349]
[1770044396562,4.15969008,104.14,104.1,8.87228349]
[1770044396779,8.87228349,104.15,104.06,3.75049009]
[1770044396780,13.03197357,104.12,104.06,3.75049009]
[1770044396969,13.03197357,104.12,104.08,8.87228349]
[1770044397273,4.15969008,104.12,104.08,8.87228349]
[1770044398470,4.15969008,104.12,104.09,8.87228349]
[1770044398669,4.15969008,104.12,104.08,12.62277358]
[1770044399683,4.15969008,104.14,104.09,8.87228349]
[1770044399882,4.15969008,104.12,104.08,12.62277358]
[1770044400182,13.03197357,104.13,104.09,12.62277358]
[1770044400382,4.15969008,104.13,104.09,8.87228349]
[1770044400681,4.15969008,104.13,104.1,8.87228349]
[1770044400888,4.15969008,104.15,104.08,4.03481323]
[1770044401076,4.15969008,104.15,104.12,8.87228349]
[1770044401275,8.87228349,104.17,104.11,4.49132259]
[1770044401483,8.87228349,104.17,104.09,8.87228349]
[1770044401484,0.2,104.27,104.2,4.27527085]
[1770044401665,0.2,104.27,104.19,4.49132259]
[1770044401983,8.87228349,104.2,104.14,4.49132259]
[1770044402187,8.87228349,104.15,104.08,4.49132259]
[1770044402363,8.87228349,104.14,104.06,4.49132259]
[1770044402570,8.87228349,104.09,104.04,13.36360608]
[1770044402764,8.87228349,104.07,104.04,4.49132259]
[1770044403179,4.41743242,104.13,104.06,4.49132259]
[1770044403377,4.41743242,104.13,104.02,8.87228349]
[1770044403378,4.15969008,104.15,104.11,8.87228349]
[1770044403683,4.15969008,104.2,104.15,4.49132259]
[1770044403873,4.15969008,104.22,104.17,8.87228349]
[1770044404083,0.2,104.27,104.12,4.49132259]
[1770044404084,4.15969008,104.18,104.12,4.49132259]
[1770044404267,13.03197357,104.18,104.13,13.36360608]
[1770044404467,4.15969008,104.18,104.14,8.87228349]
[1770044404662,8.87228349,104.19,104.13,8.87228349]
[1770044404663,4.15969008,104.17,104.13,8.87228349]
[1770044404991,13.03197357,104.16,104.11,13.36360608]
[1770044405175,13.03197357,104.16,104.11,4.49132259]
[1770044405485,13.03197357,104.16,104.11,13.36360608]
[1770044405789,4.35969008,104.24,104.16,4.49132259]
[1770044405984,4.15969008,104.21,104.17,8.87228349]
[1770044406191,4.15969008,104.19,104.11,8.87228349]
[1770044406371,4.15969008,104.16,104.11,13.36360608]
[1770044406570,13.03197357,104.16,104.1,13.50576765]
[1770044406770,4.15969008,104.16,104.11,8.87228349]
[1770044406973,13.03197357,104.16,104.1,13.36360608]
[1770044407871,13.03197357,104.16,104.11,8.87228349]
[1770044408172,13.03197357,104.16,104.1,13.36360608]
[1770044408586,13.03197357,104.15,104.1,4.49132259]
[1770044408788,0.28432314,104.17,104.09,8.87228349]
[1770044408789,4.15969008,104.14,104.09,8.87228349]
[1770044409170,4.15969008,104.16,104.11,8.87228349]
[1770044409786,4.15969008,104.15,104.1,8.87228349]
[1770044409994,4.15969008,104.15,104.11,8.87228349]
[1770044410370,4.15969008,104.15,104.12,8.87228349]
[1770044410567,4.15969008,104.15,104.11,8.87228349]
[1770044410791,4.15969008,104.17,104.14,8.87228349]
[1770044411197,4.15969008,104.2,104.15,8.87228349]
[1770044411499,4.15969008,104.19,104.14,8.87228349]
[1770044411670,4.15969008,104.17,104.12,4.49132259]
[1770044411872,4.15969008,104.16,104.11,8.87228349]
[1770044412675,4.15969008,104.15,104.1,8.87228349]
[1770044412883,4.15969008,104.13,104.07,8.87228349]
[1770044413084,4.15969008,104.12,104.07,8.87228349]
[1770044413476,4.15969008,104.12,104.09,8.87228349]
[1770044413676,4.15969008,104.12,104.07,13.36360608]
[1770044413894,4.15969008,104.11,104.05,13.36360608]
[1770044414192,4.15969008,104.11,104.05,8.87228349]
[1770044414572,4.15969008,104.11,104.04,4.49132259]
[1770044414775,4.44401322,104.1,104.06,8.87228349]
[1770044414975,4.44401322,104.1,104.04,4.49132259]
[1770044415194,4.15969008,104.1,104.06,8.87228349]
[1770044415380,4.15969008,104.1,104.04,13.36360608]
[1770044415578,4.15969008,104.08,104.02,4.49132259]
[1770044415893,4.15969008,104.08,104.0,0.1]
[1770044415894,4.15969008,104.06,104.0,4.59132259]
[1770044416087,4.15969008,104.06,104.01,8.87228349]
[1770044416405,4.15969008,104.06,104.0,4.59132259]
[1770044416612,4.15969008,104.06,104.03,8.87228349]
[1770044416916,4.15969008,104.04,104.0,0.1]
[1770044417501,4.44401322,104.0,103.97,0.1]
[1770044417703,4.15969008,104.02,103.99,8.87228349]
[1770044418396,4.15969008,104.02,103.97,0.1]
[1770044418609,4.15969008,104.02,103.97,8.97228349]
[1770044418896,8.43496093,104.04,104.01,8.87228349]
[1770044419096,4.15969008,104.08,104.03,8.87228349]
[1770044419311,4.15969008,104.08,104.05,8.87228349]
[1770044419483,4.15969008,104.08,104.03,8.87228349]
[1770044419686,8.87228349,104.13,104.06,8.87228349]
[1770044419909,4.42496272,104.09,103.99,4.44137346]
[1770044420210,4.42496272,104.05,104.01,8.87228349]
[1770044420512,4.42496272,104.05,104.02,8.87228349]
[1770044420877,4.42496272,104.05,104.01,8.87228349]
[1770044421082,4.42496272,104.04,104.0,8.87228349]
[1770044421282,4.42496272,104.04,104.01,8.87228349]
[1770044421892,4.42496272,104.04,103.97,4.39921189]
[1770044422201,8.98455671,104.06,104.02,8.87228349]
[1770044422408,4.42496272,104.05,104.01,8.87228349]
[1770044422707,4.42496272,104.05,104.02,8.87228349]
[1770044422999,4.55959399,104.06,103.97,0.1]
[1770044423000,4.42496272,104.02,103.97,0.1]
[1770044423199,4.70928586,104.01,103.97,0.1]
[1770044423406,4.42496272,104.01,103.97,0.1]
[1770044423713,4.42496272,103.97,103.92,8.87228349]
[1770044423900,4.42496272,103.97,103.91,0.1]
[1770044423901,4.42496272,103.95,103.91,0.1]
[1770044424314,4.42496272,103.91,103.89,2.47215037]
[1770044424607,8.87228349,103.92,103.89,2.47215037]
[1770044424608,4.42496272,103.93,103.89,11.34443386]
[1770044424808,8.70023357,103.94,103.89,2.47215037]
[1770044424985,17.57251706,103.94,103.89,2.47215037]
[1770044425185,13.29724621,103.92,103.89,2.47215037]
[1770044425384,13.29724621,103.92,103.89,0.23187984]
[1770044425618,4.42496272,103.92,103.89,0.23187984]
[1770044425796,13.29724621,103.92,103.89,0.23187984]
[1770044425984,13.29724621,103.92,103.86,13.17149538]
[1770044425985,4.42496272,103.91,103.86,13.17149538]
[1770044426497,13.58156935,103.93,103.88,8.87228349]
[1770044426803,8.87228349,103.91,103.86,13.17149538]
[1770044427010,13.29724621,103.87,103.84,0.2]
[1770044427217,0.28432314,103.88,103.81,4.62226699]
[1770044427512,13.14755434,103.91,103.84,4.29921189]
[1770044427683,4.27527085,103.91,103.86,4.29921189]
[1770044427886,13.14755434,103.91,103.85,8.87228349]
[1770044428191,4.27527085,103.91,103.85,4.29921189]
[1770044428503,4.27527085,103.91,103.86,8.87228349]
[1770044428702,4.27527085,103.91,103.86,13.17149538]
[1770044428903,4.27527085,103.91,103.81,9.19533859]
[1770044428904,8.87228349,103.87,103.81,0.3230551]
[1770044429106,0.14216157,103.91,103.81,9.19533859]
[1770044429406,4.42496272,103.93,103.88,8.87228349]
[1770044429606,13.29724621,103.9,103.81,0.3230551]
[1770044429790,14.23314537,103.95,103.81,0.3230551]
[1770044429791,8.87228349,103.86,103.81,0.3230551]
[1770044430107,4.42496272,103.84,103.81,0.3230551]
[1770044430483,4.42496272,103.82,103.81,0.3230551]
[1770044431096,13.29724621,103.84,103.78,13.17149538]
[1770044431407,13.29724621,103.79,103.72,0.2]
[1770044431587,13.29724621,103.77,103.72,9.07228349]
[1770044431902,13.29724621,103.77,103.69,0.2]
[1770044431903,4.42496272,103.74,103.69,0.2]
[1770044432086,4.42496272,103.74,103.69,9.07228349]
[1770044432286,4.42496272,103.76,103.69,0.2]
[1770044432486,4.27527085,103.79,103.69,9.84395172]
[1770044432707,8.70023357,103.79,103.74,8.87228349]
[1770044433310,4.42496272,103.8,103.76,8.87228349]
[1770044433607,4.27527085,103.81,103.78,8.87228349]
[1770044433935,4.42496272,103.88,103.81,4.29921189]
[1770044434204,8.87228349,103.84,103.79,4.29921189]
[1770044434421,4.42496272,103.88,103.83,8.87228349]
[1770044434587,9.45977166,103.92,103.86,8.87228349]
[1770044434783,4.42496272,103.96,103.88,8.87228349]
[1770044434988,4.42496272,103.93,103.89,8.87228349]
[1770044435184,4.42496272,103.95,103.91,8.87228349]
[1770044435397,4.42496272,103.99,103.94,8.87228349]
[1770044435606,4.42496272,103.99,103.92,4.29921189]
[1770044435794,4.42496272,103.99,103.96,8.87228349]
[1770044435984,4.42496272,103.99,103.94,13.17149538]
[1770044436184,4.42496272,103.99,103.96,8.87228349]
[1770044436405,4.42496272,103.99,103.86,26.74]
[1770044436406,4.42496272,104.05,103.99,4.29921189]
[1770044436589,4.42496272,104.08,104.03,14.26617959]
[1770044436792,4.42496272,104.07,104.04,14.26617959]
[1770044437109,4.42496272,104.11,104.06,14.26617959]
[1770044437410,22.96641316,104.07,104.01,4.29921189]
[1770044437626,4.42496272,104.04,103.97,4.29921189]
[1770044437789,18.69114231,104.02,103.96,14.26617959]
[1770044437993,14.26617959,104.01,103.95,18.56539148]
[1770044438386,18.69114231,104.01,103.96,14.26617959]
[1770044438708,18.69114231,104.03,103.97,14.26617959]
[1770044438889,0.28432314,104.04,103.99,14.26617959]
[1770044438890,18.69114231,104.04,103.99,14.26617959]
[1770044439208,4.27527085,104.04,103.99,14.26617959]
[1770044439409,4.27527085,104.04,103.98,14.26617959]
[1770044439410,14.26617959,104.03,103.98,14.26617959]
[1770044439724,22.96641316,104.04,103.98,18.56539148]
[1770044440019,22.96641316,104.04,103.94,0.28432314]
[1770044440020,18.69114231,103.99,103.94,4.29921189]
[1770044440228,4.27527085,103.99,103.94,4.29921189]
[1770044440400,14.26617959,103.99,103.94,18.56539148]
[1770044440594,22.89097306,104.02,103.95,4.29921189]
[1770044440796,22.96641316,104.02,103.96,18.56539148]
[1770044441097,14.26617959,103.99,103.94,4.29921189]
[1770044441492,18.69114231,103.97,103.91,14.26617959]
[1770044441717,18.69114231,103.97,103.9,4.29921189]
[1770044441718,14.26617959,103.95,103.9,4.29921189]
[1770044441892,4.42496272,103.9,103.81,0.96329833]
[1770044442091,14.26617959,103.88,103.82,18.56539148]
[1770044442310,4.42496272,103.92,103.81,4.29921189]
[1770044442510,18.69114231,103.91,103.81,4.29921189]
[1770044442813,14.26617959,103.86,103.81,4.29921189]
[1770044443014,4.42496272,103.87,103.82,14.26617959]
[1770044443319,18.69114231,103.87,103.81,18.56539148]
[1770044443808,18.69114231,103.87,103.82,14.26617959]
[1770044443992,18.69114231,103.87,103.81,18.56539148]
[1770044444192,14.26617959,103.86,103.81,18.56539148]
[1770044444393,14.26617959,103.86,103.81,4.29921189]
[1770044444617,18.69114231,103.87,103.81,18.56539148]
[1770044444814,14.26617959,103.85,103.79,4.29921189]
[1770044445109,4.70928586,103.88,103.82,4.29921189]
[1770044445415,4.27527085,103.88,103.82,4.29921189]
[1770044445606,4.27527085,103.88,103.83,14.26617959]
[1770044445919,18.54145044,103.88,103.83,14.26617959]
[1770044446120,21.88,103.94,103.85,14.26617959]
[1770044446121,14.26617959,103.9,103.85,14.26617959]
[1770044446411,8.70023357,103.89,103.84,18.61078873]
[1770044446610,5.36086188,103.93,103.79,24.08502521]
[1770044446611,4.42496272,103.91,103.85,18.61078873]
[1770044446917,96.14106861,104.24,103.9,14.31157684]
[1770044446918,14.31157684,103.96,103.9,14.31157684]
[1770044447100,31.47546481,104.0,103.86,4.29921189]
[1770044447418,19.0208627,103.93,103.87,14.31157684]
[1770044447713,18.48970518,103.93,103.86,4.25819677]
[1770044447899,14.31157684,103.91,103.84,4.25819677]
[1770044448107,4.17812834,103.93,103.88,18.56977361]
[1770044448420,4.17812834,103.95,103.9,14.31157684]
[1770044448919,18.48970518,103.96,103.9,18.56977361]
[1770044449088,27.22086188,104.0,103.93,14.31157684]
[1770044449089,18.48970518,103.98,103.93,14.31157684]
[1770044449294,18.48970518,103.98,103.94,14.31157684]
[1770044449295,4.17812834,103.98,103.94,14.31157684]
[1770044449490,4.17812834,103.98,103.91,4.25819677]
[1770044449704,4.17812834,104.0,103.96,14.31157684]
[1770044449912,14.31157684,104.0,103.95,18.40315216]
[1770044450118,14.31157684,103.97,103.93,4.09157532]
[1770044450322,18.57810797,103.96,103.89,4.09157532]
[1770044450524,4.26653113,103.96,103.91,14.31157684]
[1770044451195,18.57810797,103.96,103.9,18.40315216]
[1770044451499,4.26653113,103.9,103.83,4.09157532]
[1770044451702,14.31157684,103.88,103.83,18.40315216]
[1770044452002,14.31157684,103.89,103.84,14.31157684]
[1770044452722,14.31157684,103.89,103.83,18.40315216]
[1770044453118,14.31157684,103.88,103.83,18.40315216]
[1770044453322,18.57810797,103.89,103.83,18.40315216]
[1770044453512,18.57810797,103.89,103.84,14.31157684]
[1770044453829,4.27527085,103.91,103.81,9.63279739]
[1770044453830,14.31157684,103.87,103.82,14.31157684]
[1770044454523,18.57810797,103.87,103.81,4.09157532]
[1770044454710,18.57810797,103.87,103.82,14.31157684]
[1770044454908,4.26653113,103.87,103.82,14.31157684]
[1770044455306,4.26653113,103.89,103.84,14.31157684]
[1770044455617,22.85337882,103.92,103.87,14.31157684]
[1770044455831,18.57810797,103.92,103.87,14.31157684]
[1770044456001,4.26653113,103.94,103.9,14.31157684]
[1770044456819,4.26653113,103.96,103.93,14.31157684]
[1770044457325,4.26653113,103.96,103.89,4.09157532]
[1770044457525,4.26653113,103.96,103.91,14.31157684]
[1770044457822,4.26653113,103.96,103.92,14.31157684]
[1770044458519,4.26653113,103.96,103.93,14.31157684]
[1770044458711,4.26653113,103.96,103.92,14.31157684]
[1770044459414,4.27527085,103.98,103.93,14.31157684]
[1770044459616,4.26653113,103.97,103.92,14.31157684]
[1770044459812,4.26653113,103.97,103.91,18.40315216]
[1770044460013,4.26653113,103.97,103.93,14.31157684]
[1770044460208,18.57810797,103.99,103.94,14.31157684]
[1770044460519,4.26653113,103.99,103.93,4.09157532]
[1770044460732,4.26653113,104.0,103.94,4.09157532]
[1770044460904,0.28432314,103.99,103.94,4.09157532]
[1770044461111,18.57810797,104.02,103.97,14.31157684]
[1770044461408,18.57810797,104.01,103.96,18.40315216]
[1770044461608,14.31157684,104.02,103.97,18.40315216]
[1770044461914,4.26653113,104.03,103.89,84.65075477]
[1770044461915,4.26653113,104.04,104.0,14.31157684]
[1770044462318,18.57810797,104.06,104.0,18.40315216]
[1770044462518,21.96,104.12,103.96,4.09157532]
[1770044462725,21.96,104.12,103.83,48.15133377]
[1770044462726,14.31157684,104.02,103.97,18.40315216]
[1770044462922,14.31157684,104.03,103.97,4.09157532]
[1770044463135,14.31157684,103.99,103.94,14.31157684]
[1770044463344,14.31157684,103.99,103.94,4.09157532]
[1770044463713,14.31157684,103.99,103.94,18.40315216]
[1770044463915,14.31157684,103.97,103.92,18.40315216]
[1770044464125,14.31157684,103.94,103.88,30.83157532]
[1770044464415,4.41743242,103.95,103.89,14.31157684]
[1770044464614,14.31157684,103.94,103.89,14.31157684]
[1770044464841,14.31157684,103.94,103.89,18.40315216]
[1770044465050,14.31157684,103.92,103.87,4.09157532]
[1770044465340,14.31157684,103.92,103.87,18.40315216]
[1770044465541,14.31157684,103.92,103.82,31.01527085]
[1770044465542,14.31157684,103.93,103.88,18.40315216]
[1770044465921,14.31157684,103.91,103.86,4.09157532]
[1770044466121,14.31157684,103.91,103.86,18.40315216]
[1770044466432,18.57810797,103.94,103.89,14.31157684]
[1770044466641,14.31157684,103.96,103.91,4.09157532]
[1770044466951,8.54180198,103.98,103.91,18.40315216]
[1770044467139,14.31157684,104.0,103.94,18.40315216]
[1770044467316,18.57810797,104.0,103.95,14.31157684]
[1770044467644,4.26653113,104.0,103.95,14.31157684]
[1770044467818,18.57810797,104.0,103.95,14.31157684]
[1770044468140,18.57810797,104.0,103.94,18.40315216]
[1770044468334,14.31157684,103.99,103.94,18.40315216]
[1770044469241,14.31157684,103.99,103.93,14.31157684]
[1770044469242,14.31157684,103.98,103.93,14.31157684]
[1770044470239,18.57810797,103.97,103.91,14.31157684]
[1770044470421,18.86243111,103.99,103.93,18.40315216]
[1770044470734,18.57810797,103.99,103.94,14.31157684]
[1770044471241,4.26653113,103.99,103.95,14.31157684]
[1770044471439,18.57810797,103.99,103.94,14.31157684]
[1770044471838,4.26653113,103.99,103.93,18.40315216]
[1770044472136,36.01157684,104.0,103.95,14.31157684]
[1770044472335,36.01157684,104.0,103.88,31.01527085]
[1770044472336,18.57810797,104.03,103.97,4.09157532]
[1770044472646,4.26653113,104.03,103.99,14.31157684]
[1770044473234,18.57810797,104.07,104.02,14.31157684]
[1770044473433,14.31157684,104.04,103.99,14.31157684]
[1770044473610,18.57810797,104.05,103.99,4.09157532]
[1770044473815,4.26653113,104.05,104.0,14.31157684]
[1770044474029,18.58684769,104.06,104.01,14.31157684]
[1770044474234,14.31157684,104.08,104.03,14.31157684]
[1770044474436,4.26653113,104.09,104.04,14.31157684]
[1770044474614,4.26653113,104.08,104.02,18.40315216]
[1770044474814,18.57810797,104.08,104.03,14.31157684]
[1770044475016,18.57810797,104.08,104.02,18.40315216]
[1770044475235,18.58684769,104.08,104.03,18.40315216]
[1770044475426,14.31157684,104.11,104.06,14.31157684]
[1770044475633,18.58684769,104.11,104.06,14.31157684]
[1770044476046,14.31157684,104.08,104.03,18.40315216]
[1770044476239,14.31157684,104.07,104.02,14.31157684]
[1770044476443,14.59589998,104.09,104.04,14.31157684]
[1770044476639,14.45373841,104.09,104.04,14.31157684]
[1770044477042,4.26653113,104.1,104.05,14.31157684]
[1770044477043,18.57810797,104.1,104.05,14.31157684]
[1770044477431,14.31157684,104.11,104.06,14.31157684]
[1770044477843,14.31157684,104.09,104.05,4.09157532]
[1770044478044,14.31157684,104.09,104.04,18.40315216]
[1770044478351,4.26653113,104.1,104.05,14.31157684]
[1770044478530,0.2,104.12,104.08,14.31157684]
[1770044478738,14.51157684,104.12,104.07,18.40315216]
[1770044478942,14.31157684,104.11,104.06,14.31157684]
[1770044479139,14.31157684,104.11,104.06,18.40315216]
[1770044479342,0.2,104.12,104.09,14.31157684]
[1770044479530,0.2,104.12,104.09,18.40315216]
[1770044479725,0.2,104.12,104.1,14.31157684]
[1770044479941,0.2,104.12,104.08,14.31157684]
[1770044480150,0.2,104.12,104.1,14.31157684]
[1770044480357,0.2,104.13,104.11,14.31157684]
[1770044480650,18.75725232,104.16,104.08,4.16847397]
[1770044480651,14.31157684,104.16,104.08,4.16847397]
[1770044480943,14.31157684,104.12,104.07,14.31157684]
[1770044481355,4.44567548,104.13,104.06,0.14216157]
[1770044481356,18.75725232,104.13,104.06,0.14216157]
[1770044481537,18.75725232,104.13,104.08,14.31157684]
[1770044481739,4.44567548,104.13,104.08,14.31157684]
[1770044481941,4.44567548,104.13,104.09,14.31157684]
[1770044482140,14.31157684,104.12,104.07,14.31157684]
[1770044482340,14.31157684,104.11,104.06,14.31157684]
[1770044482852,18.75725232,104.12,104.07,18.48005081]
[1770044483025,14.31157684,104.11,104.07,4.16847397]
[1770044483230,14.31157684,104.11,104.06,14.31157684]
[1770044483231,18.75725232,104.1,104.05,18.48005081]
[1770044483634,14.31157684,104.08,104.03,18.48005081]
[1770044483835,14.31157684,104.08,104.01,9.61393623]
[1770044483836,4.44567548,104.07,104.02,4.16847397]
[1770044484050,14.31157684,104.08,104.03,18.48005081]
[1770044484261,14.31157684,104.07,104.03,4.16847397]
[1770044484564,18.75725232,104.08,104.03,18.48005081]
[1770044485238,4.44567548,104.08,104.03,18.48005081]
[1770044485442,4.44567548,104.08,104.04,14.31157684]
[1770044486141,18.75725232,104.08,104.03,18.48005081]
[1770044486334,4.44567548,104.08,104.03,18.48005081]
[1770044486536,21.68,104.09,104.05,18.48005081]
[1770044486971,26.12567548,104.09,104.05,14.31157684]
[1770044487149,40.43725232,104.09,104.04,14.31157684]
[1770044487355,4.27527085,104.11,104.02,9.61318541]
[1770044487356,18.75725232,104.07,104.02,14.31157684]
[1770044487552,18.75725232,104.06,104.01,4.16847397]
[1770044487764,18.75725232,104.06,104.01,18.48005081]
[1770044488342,21.96432314,104.08,103.97,13.78613507]
[1770044488343,18.75725232,104.03,103.97,13.78613507]
[1770044488554,14.31157684,104.02,103.98,4.16847397]
[1770044488742,18.75725232,104.01,103.96,18.48005081]
[1770044488943,4.44567548,104.01,103.96,18.48005081]
[1770044489155,4.44567548,104.03,103.98,28.09708964]
[1770044489341,40.72157546,104.05,104.0,18.48005081]
[1770044489542,40.72157546,104.05,104.0,14.31157684]
[1770044489957,18.75725232,104.04,103.99,18.48005081]
[1770044490262,4.44567548,104.04,104.0,14.31157684]
[1770044490459,26.12567548,104.05,104.01,14.31157684]
[1770044490678,36.01157684,104.08,104.03,14.31157684]
[1770044490844,21.7,104.08,104.04,4.16847397]
[1770044491244,26.14567548,104.11,104.07,14.31157684]
[1770044491445,21.7,104.11,104.07,14.31157684]
[1770044491657,18.75725232,104.1,104.04,18.48005081]
[1770044491957,4.44567548,104.1,104.05,18.48005081]
[1770044492148,21.7,104.11,104.07,14.31157684]
[1770044492355,18.75725232,104.09,104.03,18.48005081]
[1770044492750,18.75725232,104.09,104.04,18.48005081]
[1770044492951,14.31157684,104.12,104.07,18.48005081]
[1770044493179,4.44567548,104.13,104.08,14.31157684]
[1770044493345,4.44567548,104.16,104.12,14.31157684]
[1770044493776,4.44567548,104.19,104.14,18.48005081]
[1770044493946,5.02044795,104.22,104.15,13.76991856]
[1770044493947,18.75725232,104.22,104.15,13.76991856]
[1770044494149,40.45725232,104.22,104.17,14.31157684]
[1770044494487,14.51157684,104.21,104.16,14.31157684]
[1770044494669,14.51157684,104.21,104.14,14.31157684]
[1770044494670,18.75725232,104.2,104.14,14.31157684]
[1770044494849,18.75725232,104.19,104.14,14.31157684]
[1770044495345,14.31157684,104.16,104.11,18.48005081]
[1770044495544,14.31157684,104.15,104.11,4.16847397]
[1770044495859,14.31157684,104.15,104.1,18.48005081]
[1770044496064,18.75725232,104.14,104.08,4.16847397]
[1770044496264,14.31157684,104.13,104.08,4.16847397]
[1770044496468,4.44567548,104.14,104.08,18.48005081]
[1770044496652,14.31157684,104.13,104.08,18.48005081]
[1770044496848,18.75725232,104.12,104.07,14.31157684]
[1770044497158,19.04157546,104.13,104.08,14.31157684]
[1770044497360,14.31157684,104.12,104.07,18.48005081]
[1770044497864,40.45725232,104.13,104.08,14.31157684]
[1770044498055,40.45725232,104.13,104.07,13.77728027]
[1770044498056,8.72094633,104.15,104.1,14.31157684]
[1770044498259,4.44567548,104.14,104.08,14.31157684]
[1770044498469,18.75725232,104.13,104.07,18.48005081]
[1770044498649,14.31157684,104.12,104.08,4.16847397]
[1770044498850,4.44567548,104.13,104.08,14.31157684]
[1770044499178,14.31157684,104.12,104.07,18.48005081]
[1770044500071,18.75725232,104.11,104.06,14.31157684]
[1770044500274,21.68,104.12,104.08,18.48005081]
[1770044500474,30.40094633,104.15,104.1,18.48005081]
[1770044500684,14.31157684,104.14,104.09,14.31157684]
[1770044500853,18.75725232,104.14,104.08,4.16847397]
[1770044501054,14.31157684,104.12,104.07,18.48005081]
[1770044501359,18.75725232,104.13,104.08,14.31157684]
[1770044502076,18.75725232,104.12,104.07,18.48005081]
[1770044502374,26.09743242,104.15,104.1,18.48005081]
[1770044502574,44.71252317,104.15,104.1,4.16847397]
[1770044502957,19.04157546,104.14,104.09,14.31157684]
[1770044503252,35.99157684,104.14,104.09,18.48005081]
[1770044503572,26.12567548,104.14,104.09,14.31157684]
[1770044503787,26.12567548,104.14,104.1,14.31157684]
[1770044504077,40.43725232,104.14,104.09,18.48005081]
[1770044504272,18.75725232,104.14,104.09,18.48005081]
[1770044504484,14.31157684,104.12,104.07,18.48005081]
[1770044504674,18.75725232,104.13,104.08,14.31157684]
[1770044504854,14.31157684,104.12,104.07,18.48005081]
[1770044505059,18.75725232,104.1,104.05,18.48005081]
[1770044505686,21.7,104.12,104.03,18.48005081]
[1770044505687,14.31157684,104.08,104.03,18.48005081]
[1770044505865,36.01157684,104.08,104.03,18.48005081]
[1770044506266,19.04157546,104.06,104.0,14.31157684]
[1770044506581,14.31157684,104.05,104.0,18.48005081]
[1770044507187,14.31157684,104.04,103.99,14.31157684]
[1770044507387,14.31157684,104.03,103.98,18.48005081]
[1770044507579,4.44567548,104.04,103.96,18.48005081]
[1770044507580,18.75725232,104.02,103.96,18.48005081]
[1770044507763,14.31157684,104.01,103.96,18.48005081]
[1770044508169,18.75725232,104.02,103.97,14.31157684]
[1770044508380,18.72042063,104.02,103.97,14.27474515]
[1770044508689,18.36134489,104.01,103.96,4.16847397]
[1770044508882,18.36134489,104.01,103.96,18.44321912]
[1770044509063,14.27474515,104.02,103.97,14.27474515]
[1770044509268,14.27474515,104.01,103.97,4.35008817]
[1770044509479,18.36134489,104.02,103.97,18.62483332]
[1770044510077,4.08659974,104.02,103.97,18.62483332]
[1770044510387,18.36134489,104.02,103.97,18.62483332]
[1770044510964,18.41713222,104.01,103.96,14.27474515]
[1770044511162,4.14238707,104.01,103.97,14.27474515]
[1770044511366,18.41713222,104.03,103.97,27.97497978]
[1770044511582,14.27474515,104.02,103.97,27.97497978]
[1770044511789,18.41713222,104.02,103.97,27.97497978]
[1770044511981,18.41713222,104.02,103.97,18.35708732]
[1770044512290,14.27474515,104.01,103.97,4.08234217]
[1770044512589,18.41713222,104.02,103.97,18.35708732]
[1770044512790,18.41713222,104.02,103.97,27.97519593]
[1770044513163,21.72,104.03,103.99,14.27474515]
[1770044513362,21.72,104.03,103.99,18.35708732]
[1770044513767,4.14238707,104.06,104.01,18.35708732]
[1770044513973,18.41713222,104.04,103.99,4.08234217]
[1770044514290,18.41713222,104.04,103.99,18.35708732]
[1770044514589,25.86238707,104.06,104.02,14.27474515]
[1770044514897,4.14238707,104.06,104.02,14.27474515]
[1770044515081,4.14238707,104.08,104.04,14.27474515]
[1770044515283,4.14238707,104.12,104.06,18.35708732]
[1770044515476,4.14238707,104.12,104.07,14.27474515]
[1770044515675,4.14238707,104.12,104.09,14.27474515]
[1770044515870,4.14238707,104.12,104.08,14.27474515]